Cogmind - Beta 13 @@@ ROGUE MODE // 2024.04.07 @ 10:12:36 Player: gabr Result: Destroyed by SZ-C3M(R) with Subdweller Shrapnel Launcher Performance ------------- Evolutions (0) 0 Regions Visited (2) 400 Robots Destroyed (21) 105 Value Destroyed (381) 381 Prototype IDs (0) 0 Alien Tech Used (0) 0 Bonus (0) 0 TOTAL SCORE: 886 Bonus ------- None Cogmind --------- Core Integrity 0/250 Matter 208/300 Energy 100/100 System Corruption 0% Temperature Cool (0) Movement Rolling (140) Ox4 Location -10/Subcaves Parts ------- > --- POWER (1) -------- (None) > --- PROPULSION (2) --- Wheel > --- UTILITY (2) ------ High-capacity Storage Unit > --- WEAPON (2) ------- Assault Rifle > --- INVENTORY (20) --- Ion Engine Light Nuclear Core Flight Unit Flight Unit Flight Unit Flight Unit Flight Unit Terrain Scan Processor Utility Shielding Hardened Light Armor Plating Hardened Light Armor Plating Cobbler Unit Grenade Launcher Mining Claw Piercing Trap Peak State ------------ > --- POWER ------------ Light Nuclear Core > --- PROPULSION ------- Flight Unit Flight Unit > --- UTILITY ---------- Small Storage Unit Hardened Light Armor Plating > --- WEAPON ----------- Autogun Autogun > --- INVENTORY -------- Light Ion Engine Flight Unit Flight Unit Sensor Array Hardened Light Armor Plating Medium Laser Assault Rifle Grenade Launcher [Rating: 12] Favorites ----------- Power Ion Engine Engine Ion Engine Power Core Light Nuclear Core Propulsion Wheel Leg Aluminum Leg Wheel Wheel Flight Unit Flight Unit Utility Hardened Light Armor Plating Storage Small Storage Unit Protection Hardened Light Armor Plating Weapon Autogun Ballistic Gun Autogun Special Weapon Welding Torch Build | -11 -10 -10 ------- Run | Yrd Mat Sub Slots Evolved . | . . . Power . | . . . Propulsion . | . . . Utility . | . . . Weapon . | . . . Parts Attached 41 | 11 21 9 Power 10 | 1 8 1 Engine 9 | 1 7 1 Core 1 | . 1 . Reactor . | . . . Propulsion 20 | 7 7 6 Treads . | . . . Leg 3 | 2 . 1 Wheel 12 | 5 2 5 Hover . | . . . Flight 5 | . 5 . Utility 5 | 1 4 . Device . | . . . Storage 2 | 1 1 . Processor . | . . . Hackware . | . . . Protection 3 | . 3 . Artifact . | . . . Weapon 6 | 2 2 2 Energy Gun . | . . . Energy Cannon . | . . . Ballistic Gun 5 | 2 2 1 Ballistic Cannon . | . . . Launcher . | . . . Special Weapon 1 | . . 1 Impact Weapon . | . . . Slashing Weapon . | . . . Piercing Weapon . | . . . Special Melee Weapon . | . . . Unidentified Prototypes . | . . . Parts Lost 8 | . 1 7 Power 2 | . 1 1 Propulsion 3 | . . 3 Utility . | . . . Weapon 3 | . . 3 Highest Loss Streak 7 | . 1 7 To Critical Strikes . | . . . Average Slot Usage (%) 97 | . 99 93 Engine 12 | . 11 13 Core 1 | . 2 . Wheel 19 | . 14 27 Flight 7 | . 13 . Storage 14 | . 14 14 Protection 12 | . 13 9 Ballistic Gun 27 | . 28 26 Naked Turns . | . . . Heaviest Build 56 | 13 56 56 Greatest Support 32 | 32 20 20 Greatest Overweight (x) 5 | 4 5 5 Average Overweight (x) 1 | . 1 2 Largest Inventory Capacity 20 | 8 20 20 Average Capacity 13 | 7 9 20 Most Carried 20 | 6 13 20 Average Carried 10 | 2 8 15 Final Capacity 20 | 8 20 20 Final Carried 16 | 6 13 16 Class Distribution -------------------- 100% | Mutant Dominant Class ---------------- Mutant | -10/Materials Mutant | -10/Subcaves Resources | -11 -10 -10 ----------- Run | Yrd Mat Sub Matter Collected 1002 | 178 460 364 Remotely . | . . . Salvage Created 714 | 22 489 203 Parts 45 | 4 31 10 Haulers Intercepted 2 | . 2 . Recyclers Shooed 1 | . 1 . Parts Field Recycled . | . . . Retrieved Matter . | . . . Parts Self-Destructed 12 | . . 12 Prevented . | . . . Kills | -11 -10 -10 ------- Run | Yrd Mat Sub Combat Hostiles Destroyed 13 | . 9 4 Guns 13 | . 9 4 Classes Destroyed 8 | 1 7 . Worker 1 | . 1 . Builder 2 | . 2 . Tunneler 1 | 1 . . Hauler 2 | . 2 . Recycler 1 | . 1 . Watcher 1 | . 1 . Swarmer 6 | . 6 . Grunt 7 | . 3 4 Best Kill Streak 6 | 1 6 2 Combat Bots Only 6 | . 6 2 Max Kills in Single Turn 1 | 1 1 1 Gunslinging . | . . . Exploded . | . . . Melee . | . . . Uniques/NPCs Destroyed . | . . . Combat | -11 -10 -10 -------- Run | Yrd Mat Sub Hostile Shots Fired 64 | . 33 31 Missed 14 | . 8 6 Damage Taken 1041 | . 364 677 Core 256 | . 47 209 Absorbed by Shields . | . . . Core Remaining (%) 100 | 100 . . Volleys Fired 71 | 5 50 16 Largest 2 | 2 2 2 Hottest 46 | 40 46 46 Shots Fired 138 | 10 100 28 Gun 137 | 10 100 27 Cannon . | . . . Launcher . | . . . Special 1 | . . 1 Kinetic 137 | 10 100 27 Thermal 1 | . . 1 Explosive . | . . . Electromagnetic . | . . . Robot Hit Streak 6 | 4 6 5 Robot Miss Streak 4 | 4 3 4 Penetration Max . | . . . Secondary Targets 3 | . 3 . Max Gunslinging Chain 1 | . 1 . Shots Hit Robots 77 | 5 55 17 Core Hits 32 | 2 22 8 Critical Kills . | . . . Critical Parts Destroyed 1 | . 1 . Critical Strikes 1 | . 1 . Destroy 1 | . 1 . Melee Attacks . | . . . Impact . | . . . Slashing . | . . . Piercing . | . . . Sneak Attacks . | . . . Combat Hostiles . | . . . Follow-up Attacks . | . . . Damage Inflicted 1140 | 53 848 239 Guns 1140 | 53 848 239 Cannons . | . . . Explosions . | . . . Melee . | . . . Ramming . | . . . Kinetic 1140 | 53 848 239 Thermal . | . . . Explosive . | . . . Electromagnetic . | . . . Impact . | . . . Slashing . | . . . Piercing . | . . . Highest Corruption . | . . . Average Corruption . | . . . Corruption Purged . | . . . Corruption Blocked . | . . . Overload Shots . | . . . Overflow Damage . | . . . Projectiles . | . . . Explosions . | . . . Melee . | . . . Knockbacks . | . . . Impact . | . . . Kinetic . | . . . Secondary . | . . . Self-Inflicted Damage . | . . . Shots . | . . . Rammed . | . . . Targets Rammed . | . . . Kicked . | . . . Crushed . | . . . Highest Temperature 156 | . 156 3 Average Temperature 39 | . 40 3 Received Heat Transfer 180 | . 60 120 Siege Activations . | . . . Robots Corrupted . | . . . Combat Hostiles . | . . . Parts Fried . | . . . Impact Corruptions . | . . . Robots Melted . | . . . Combat Hostiles . | . . . Parts Melted . | . . . Heat Transferred . | . . . Parts Sabotaged . | . . . Parts Stolen . | . . . Parts Stripped . | . . . Power Chain Reactions . | . . . Alert | -11 -10 -10 ------- Run | Yrd Mat Sub Peak Influence 252 | 5 252 . Initial 3 | . 3 . Average 95 | 1 106 . Maximum Alert Level 1 | . 1 . Low Security (%) 76 | 100 74 . Level 1 23 | . 25 . Level 2 . | . . . Level 3 . | . . . Level 4 . | . . . Level 5 . | . . . High Security . | . . . Max Security . | . . . Squads Dispatched . | . . . Investigation . | . . . Extermination . | . . . Reinforcement . | . . . Assault . | . . . Garrison . | . . . Intercept . | . . . Searches Triggered . | . . . Construction Impeded . | . . . Haulers Reinforced . | . . . Active Scanning Responses . | . . . Cargo Convoy Interrupts . | . . . Stealth | -11 -10 -10 --------- Run | Yrd Mat Sub Distress Signals 1 | . 1 . Communications Jammed . | . . . Distress Signals . | . . . Times Spotted 23 | . 18 5 Peak Tracking Total 6 | . 6 2 Tactical Retreats . | . . . Traps | -11 -10 -10 ------- Run | Yrd Mat Sub Traps Triggered 1 | . 1 . Indirectly . | . . . Trap Hack Attempts . | . . . Triggered . | . . . Disarmed . | . . . Reprogrammed . | . . . Reused . | . . . Traps Extracted . | . . . Installed . | . . . Triggered . | . . . Most Traps Carried 1 | . . 1 Machines | -11 -10 -10 ---------- Run | Yrd Mat Sub Machines Disabled . | . . . Max in Single Turn . | . . . Machines Repaired . | . . . Machines Dismantled . | . . . Machines Sabotaged . | . . . Overloaded Fab Kills . | . . . Hacking | -11 -10 -10 --------- Run | Yrd Mat Sub Machines Accessed 1 | . 1 . Terminals 1 | . 1 . Fabricators . | . . . Repair Stations . | . . . Recycling Units . | . . . Scanalyzers . | . . . Garrison Access . | . . . Total Hacks 2 | . 2 . Successful . | . . . Failed 2 | . 2 . Catastrophic 1 | . 1 . Database Lockouts . | . . . Manual . | . . . Terminals 2 | . 2 . Fabricators . | . . . Repair Stations . | . . . Recycling Units . | . . . Scanalyzers . | . . . Garrison Access . | . . . Terminal Hacks . | . . . Fabricator Hacks . | . . . Repair Station Hacks . | . . . Recycling Unit Hacks . | . . . Scanalyzer . | . . . Garrison Access Hacks . | . . . Unauthorized Hacks . | . . . Terminals . | . . . Fabricators . | . . . Repair Stations . | . . . Recycling Units . | . . . Scanalyzers . | . . . Garrison Access . | . . . Data Cores Recovered . | . . . Used . | . . . Hacking Detections 1 | . 1 . Full Trace Events . | . . . Feedback Events . | . . . Feedback Blocked . | . . . Robot Schematics Acquired . | . . . Robots Built . | . . . Authchips . | . . . Time . | . . . Total Robot Build Rating . | . . . Part Schematics Acquired . | . . . Parts Built . | . . . Authchips . | . . . Time . | . . . Total Part Build Rating . | . . . Parts Repaired . | . . . Time . | . . . Parts Recycled . | . . . Recycled Matter . | . . . Retrieved Matter . | . . . Retrieved Components . | . . . Parts Scanalyzed . | . . . Part Schematics Acquired . | . . . Parts Damaged . | . . . Bothacking | -11 -10 -10 ------------ Run | Yrd Mat Sub Used RIF Installer . | . . . Robots Hacked . | . . . Non-combat . | . . . Combat . | . . . Robot Hacks Applied . | . . . Relay Couplers Released . | . . . Fabnet Peak Effective % . | . . . Robots Rewired . | . . . Allies Hacked . | . . . Hacks Repelled . | . . . Allies | -11 -10 -10 -------- Run | Yrd Mat Sub Total Allies . | . . . Largest Group . | . . . Highest-Rated Group . | . . . Highest-Rated Ally . | . . . Total Orders . | . . . Ally Attacks . | . . . Total Damage . | . . . Kills . | . . . Allies Corrupted . | . . . Allies Melted . | . . . Intel | -11 -10 -10 ------- Run | Yrd Mat Sub Robot Analysis Total . | . . . Derelict Logs Recovered 1 | . . 1 Drone Launches . | . . . Drone Recoveries . | . . . Exploration | -11 -10 -10 ------------- Run | Yrd Mat Sub Turns Passed 1295 | 78 714 503 Spaces Moved 736 | 44 399 293 Core 7 | 7 . . Treads . | . . . Legs 17 | 15 . 2 Wheels 580 | 22 267 291 Hover . | . . . Flight 132 | . 132 . Fastest Speed 50 | 50 80 110 Average Speed 121 | 102 130 112 Slowest Speed 470 | 250 440 470 Overloaded Moves . | . . . Propulsion Burnouts . | . . . Robots Hopped . | . . . Cave-ins Triggered . | . . . Exploration Rate (%) 25 | 4 49 23 Regions Visited 2 Branch Regions 1 Pre-discovered Areas 1 | . . 1 Known Exits Taken . | . . . Unknown Exits Taken 2 | 1 1 . Scrap Searched . | . . . Spaces Dug . | . . . Terrain Destroyed . | . . . Melee . | . . . Projectile . | . . . AOE . | . . . Terrain Rammed . | . . . Walls Destroyed . | . . . Machines Disabled . | . . . Actions | -11 -10 -10 --------- Run | Yrd Mat Sub Total 1027 | 64 519 444 Wait 130 | . 12 118 Move 734 | 43 398 293 Hop . | . . . Pick Up 19 | 2 14 3 Fast Attach 16 | 8 7 1 Attach 9 | 1 2 6 Detach 9 | 3 2 4 Swap 16 | 2 12 2 Drop 23 | . 22 1 Fire 71 | 5 50 16 Melee . | . . . Ram . | . . . Kick . | . . . Crush . | . . . Escape Stasis . | . . . Rewire . | . . . Trap . | . . . Miscellaneous . | . . . Route ------- -11/Scrapyard -10/Materials (discovered 2 exits: [*Min] / [*Sub]) -10/Subcaves History --------- Turn | Location | Event 3 | -11/Scrapyard | Discovered new exit (range 15) 79 | -11/Scrapyard | Entered Materials 318 | -10/Materials | Build established: Mutant 606 | -10/Materials | Discovered new exit (range 16) 781 | -10/Materials | Discovered new exit (range 11) 793 | -10/Materials | Entered Subcaves 903 | -10/Subcaves | Learned location of Zion (-7) 903 | -10/Subcaves | Met a Zionite searching for "candidates" 1181 | -10/Subcaves | Learned Materials non-interactive machine intel 1222 | -10/Subcaves | A swath of the cavern ceiling suddenly collapsed 1265 | -10/Subcaves | Core integrity fell below 50% 1296 | -10/Subcaves | Destroyed by SZ-C3M(R) with Subdweller Shrapnel Launcher Last Messages --------------- 01121_ Ion Engine fries itself beyond repair. 01121_ Acquired Aluminum Leg. 01123_ Aluminum Leg fries itself beyond repair. 01131_ Heat Sink fries itself beyond repair. 01133_ Dropped Aluminum Leg. 01141_ Acquired Cobbler Unit. 01143_ Acquired Piercing Trap. 01144_ Acquired 41 matter. 01155_ Acquired 50 matter. 01156_ Acquired 57 matter. 01181_ Acquired derelict log, extracted data. Data stored: Materials non-interactive machine intel. A swath of the cavern ceiling suddenly collapses. 01258_ Autogun destroyed. 01262_ Wheel destroyed. 01264_ Autogun destroyed. 01264_ Wheel destroyed. 01288_ Ion Engine destroyed. 01288_ Wheel destroyed. 01290_ Welding Torch destroyed. Map ----- +----------------------------------------------------+ | # ##?# ###??? ???????????????????????????? | | ## #??? #????? ???????????????????????????? | | ## #??? #????? ????????????????????????????? | | # ##??? #?????? ?????????????????????????????? | | # #??? #????????????????????????????????????? | | # #### ##???????????????????????????????????? | | # ##??????????????????????????????????? | | ## #??????????????????????????????????? | | ## #??????????????????????????????????? | | # #??????????????????????????????????? | | ##??????????????????????????????????? | | ###???????????????????????????????????? | | ##?????????????????????????????????????? | | ###??????????????????????????????????????? | | ## #????????????????????????????????????????? | | ### #????????????????????????????????????????? | | "#######??????????????????????????????????????? | | # "#####"# #??????????????????????????????????? | | ##"""##"""# #??????????????????????????????????? | | ?# """""""# ###??????????????????????????????????? | | ## "####"####???###??????????????????????????????? | | # ##"##?????## #######?###????????????????????? | | # ""########## ## ## # #????????????????????? | | # ###"## # ## ;;;;;##???????????????????? | | ## ""### ; R ;;#???????????????????? | | ?# " # @ ;#???????????????????? | | ?# #; ;;; ;#???????????????????? | | ?# "" ; ;;;;#???????????????????? | | ?# "" #### ##???????????????????? | | # "" #???##????????????????????? | | ## """ ##?????????????????????????? | | #?# """" #?????????????????????????? | | ##??# """" #?????????????????????????? | | ????# """"" ###?????????????????????????? | | ???? ###"" R "##???????????????????????????? | | ??? #?# "" ##????????????????????????????? | | ??? ### "" #?????????????????????????????? | | ????#??# ###?????????????????????????????? | | ???????# ####???????????????????????????????? | | ???????#" ##??????????????????????????????????? | | ????????" ???????????????????????????????????? | | ????????? ???????????????????????????????????? | | ?????????# ???????????????????????????????????? | | ?????????# ?????????????????????????????????????? | | ?????????????????????????????????????????????????? | | ?????????????????????????????????????????????????? | | ?????????????????????????????????????????????????? | | ?????????????????????????????????????????????????? | | ?????????????????????????????????????????????????? | | ?????????????????????????????????????????????????? | +----------------------------------------------------+ Best States ------------- Heat Dissipation 25 Energy Generation 14 Energy Capacity 250 Matter Stores 230 Matter Capacity 300 Sight Range 16 Terrain Scan Density 10 Armor Coverage 150 Evasion (%) 55 Item Schematics ----------------- None Robot Schematics ------------------ None Fabricated ------------ Nothing Alien Tech Used ----------------- None Achievements -------------- None Challenges ------------ None Game ------ Seed SpikedStorageBoregun Manual? 0 Play Time 00:10:18 Cumulative 61.4 hours Start 2024.04.07 @ 10:01:32 End 2024.04.07 @ 10:12:36 Sessions 1 Manual Loads 0 Difficulty Rogue Special Mode None Game No. 140 Rogue 140 Adventurer 0 Explorer 0 Win Type - Total 0 Types 0/0/0/0/0/0/0/0/0 Lore% 27 Gallery% 40 Achievement% 31 Wizard Run 0 Options --------- Layout 0 ASCII 0 Keyboard 1 Movement Numpad Keybinds 0 Fullscreen 1 Font 24/Terminus Map View 76x50 Zoom Use 1% Tactical HUD 1 Map Filters NONE Filters NONE Steam 1 RUN: 18a0dd5e-1bc0-4e54-a02d-137368f29da9